bitfinex-derivatives/quotes_BTCF0:USTF0_20250213
["timestamp","ask_amount","ask_price","bid_price","bid_amount"]
[1739452582244,0.12655037,95800.0,95799.0,0.001]
[1739452582448,0.12955037,95800.0,95799.0,0.001]
[1739452582841,0.212738,95800.0,95799.0,0.001]
[1739452583043,0.212738,95800.0,95799.0,0.002]
[1739452583947,0.211738,95800.0,95799.0,0.002]
[1739452584545,0.003,95800.0,95799.0,0.002]
[1739452584736,0.07392,95800.0,95799.0,0.002]
[1739452585135,0.07292,95800.0,95799.0,0.002]
[1739452585339,0.07392,95800.0,95799.0,0.002]
[1739452586152,0.12469146,95800.0,95799.0,0.2107401]
[1739452586349,0.05377146,95800.0,95799.0,0.5715401]
[1739452588654,0.05277146,95800.0,95799.0,0.5705401]
[1739452588953,0.05377146,95800.0,95799.0,0.5715401]
[1739452589356,0.05377146,95800.0,95799.0,0.5705401]
[1739452589956,0.05377146,95800.0,95799.0,0.5695401]
[1739452590250,0.05377146,95800.0,95799.0,0.2087401]
[1739452590450,0.05377146,95800.0,95799.0,0.5695401]
[1739452593662,0.1584878,95800.0,95799.0,0.5695401]
[1739452595655,0.186687,95809.0,95808.0,0.2087205]
[1739452595859,0.186687,95809.0,95808.0,0.5695205]
[1739452596758,0.188687,95809.0,95808.0,0.5705205]
[1739452597148,0.002,95809.0,95808.0,0.5705205]
[1739452597958,0.002,95809.0,95808.0,0.5715205]
[1739452598362,0.15554957,95814.0,95808.0,0.3628]
[1739452598564,0.05335684,95829.0,95815.0,0.0521762]
[1739452598752,0.0996,95846.0,95828.0,0.3608]
[1739452599066,0.12555037,95840.0,95836.0,0.3608]
[1739452599261,0.208641,95845.0,95843.0,0.2086443]
[1739452599557,0.22515037,95846.0,95836.0,0.3608]
[1739452599558,0.47919699,95844.0,95838.0,0.2086551]
[1739452599966,0.27055479,95844.0,95836.0,0.3608]
[1739452600265,0.27055479,95844.0,95842.0,0.2086464]
[1739452600563,0.27055479,95844.0,95843.0,0.001]
[1739452601462,0.10337169,95844.0,95843.0,0.001]
[1739452601958,0.10337169,95844.0,95843.0,0.002]
[1739452602166,0.10337169,95844.0,95843.0,0.2096443]
[1739452602554,0.10337169,95844.0,95843.0,0.2086443]
[1739452602749,0.05196521,95853.0,95852.0,0.2086247]
[1739452602964,0.05196521,95853.0,95852.0,0.5694247]
[1739452604650,0.12555037,95862.0,95856.0,0.2086159]
[1739452605556,0.12555037,95862.0,95857.0,0.2086128]
[1739452605760,0.17686569,95862.0,95852.0,0.3618]
[1739452605960,0.17686569,95862.0,95861.0,0.2086051]
[1739452606169,0.05131532,95862.0,95861.0,0.2086051]
[1739452606359,0.1004,95867.0,95861.0,0.3608]
[1739452606559,0.1004,95867.0,95866.0,0.2085942]
[1739452607659,0.15362033,95867.0,95866.0,0.2085942]
[1739452608763,0.15362033,95867.0,95866.0,0.2095942]
[1739452608965,0.15362033,95867.0,95866.0,0.2105942]
[1739452609171,0.05322033,95867.0,95866.0,0.2105942]
[1739452609367,0.00015618,95869.0,95866.0,0.001]
[1739452609668,0.00015618,95869.0,95868.0,0.2085899]
[1739452609858,0.12555037,95890.0,95866.0,0.001]
[1739452610059,0.12555037,95890.0,95885.0,0.2085518]
[1739452610259,0.05292284,95890.0,95876.0,0.3608]
[1739452610466,0.2085533,95885.0,95876.0,0.3608]
[1739452610671,0.2085533,95885.0,95878.0,0.208568]
[1739452610854,0.33409407,95890.0,95879.0,0.2085658]
[1739452611060,0.12555037,95890.0,95882.0,0.2085583]
[1739452611559,0.1786611,95890.0,95882.0,0.2085583]
[1739452612859,0.1786611,95890.0,95877.0,0.2085701]
[1739452613064,0.1786611,95890.0,95878.0,0.2085673]
[1739452613573,0.1786611,95890.0,95882.0,0.001]
[1739452613871,0.1786611,95890.0,95884.0,0.2085548]
[1739452615056,0.1786611,95890.0,95882.0,0.001]
[1739452615866,0.1786611,95890.0,95881.0,0.2085616]
[1739452616269,0.1786611,95890.0,95884.0,0.001]
[1739452616467,0.1786611,95890.0,95884.0,0.2095532]
[1739452616658,0.1786611,95890.0,95884.0,0.2085532]
[1739452617469,0.1786611,95890.0,95884.0,0.2105532]
[1739452617868,0.1786611,95890.0,95884.0,0.2095532]
[1739452618063,0.1786611,95890.0,95884.0,0.002]
[1739452618969,0.1786611,95890.0,95884.0,0.001]
[1739452619171,0.1786611,95890.0,95884.0,0.002]
[1739452619471,0.00156001,95908.0,95889.0,0.3608]
[1739452619674,0.17638,95931.0,95915.0,0.2084877]
[1739452619981,0.1051,95931.0,95915.0,0.5692877]
[1739452620168,0.3608,95930.0,95915.0,0.9300877]
[1739452620475,0.1051,95931.0,95915.0,0.9300877]
[1739452621269,0.05234625,95922.0,95915.0,0.9310877]
[1739452621468,0.1051,95931.0,95915.0,0.9310877]
[1739452621880,0.1051,95931.0,95923.0,0.2084703]
[1739452622073,0.0996,95940.0,95923.0,0.5692703]
[1739452622378,0.0977,95944.0,95923.0,0.5692703]
[1739452622880,0.0977,95944.0,95936.0,0.2084412]
[1739452623066,0.0977,95944.0,95940.0,0.3608]
[1739452623972,0.0977,95944.0,95942.0,0.2084275]
[1739452624275,0.18605077,95951.0,95940.0,0.3608]
[1739452624471,0.18605077,95951.0,95947.0,0.2084169]
[1739452625768,0.23762998,95951.0,95947.0,0.2084169]
[1739452625978,0.23762998,95951.0,95948.0,0.2084148]
[1739452626382,0.59842998,95951.0,95947.0,0.001]
[1739452626565,0.23762998,95951.0,95947.0,0.001]
[1739452626971,0.05157921,95951.0,95947.0,0.002]
[1739452627279,0.3608,95955.0,95947.0,0.002]
[1739452627475,0.1031,95957.0,95949.0,0.3608]
[1739452627682,0.1031,95957.0,95956.0,0.2083986]
[1739452628384,0.15598225,95957.0,95956.0,0.2083986]
[1739452628580,0.15598225,95957.0,95955.0,0.2083992]
[1739452629079,0.15598225,95957.0,95956.0,0.001]
[1739452629276,0.05288225,95957.0,95956.0,0.001]
[1739452629485,0.48635037,95990.0,95956.0,0.2201]
[1739452629673,0.41343194,95972.0,95962.0,0.3608]
[1739452630980,0.2083736,95968.0,95962.0,0.3608]
[1739452631579,0.54058231,95972.0,95962.0,0.3608]
[1739452631779,0.41343194,95972.0,95962.0,0.5691848]
[1739452631980,0.2083687,95970.0,95962.0,0.3608]
[1739452632885,0.41499195,95972.0,95962.0,0.3628]
[1739452633183,0.41343194,95972.0,95962.0,0.3628]
[1739452633377,0.53898231,95972.0,95962.0,0.3628]
[1739452634084,0.53898231,95972.0,95962.0,0.3618]
[1739452634283,0.2083666,95971.0,95962.0,0.3628]
[1739452634478,0.2083666,95971.0,95962.0,0.3618]
[1739452634880,0.2083666,95971.0,95962.0,0.3628]
[1739452635386,0.2083666,95971.0,95962.0,0.3618]
[1739452635872,0.54054232,95972.0,95962.0,0.3618]
[1739452636078,0.53898231,95972.0,95964.0,0.2083792]
[1739452636385,0.53898231,95972.0,95962.0,0.3618]
[1739452636592,0.05263194,95972.0,95971.0,0.208366]
[1739452636782,0.28758625,95989.0,95986.0,0.2083323]
[1739452637088,0.06928625,95989.0,95972.0,0.3007]
[1739452637285,0.06928625,95989.0,95982.0,0.2083419]
[1739452637580,0.06928625,95989.0,95978.0,0.00015634]
[1739452637786,0.12079608,95989.0,95978.0,0.00015634]
[1739452638183,0.12079608,95989.0,95983.0,0.2083397]
[1739452638586,0.05150983,95989.0,95988.0,0.2083291]
[1739452638787,0.208308,95998.0,95988.0,0.2083291]
[1739452639195,0.3608,95999.0,95981.0,0.3608]
[1739452639390,0.12555037,95992.0,95984.0,0.2083368]
[1739452640188,0.33387147,95992.0,95984.0,0.2083368]
[1739452640593,0.33387147,95992.0,95984.0,0.2093368]
[1739452640795,0.38694031,95992.0,95984.0,0.26068551]
[1739452641391,0.3608,95990.0,95985.0,0.2083354]
[1739452641692,0.3608,95990.0,95988.0,0.001]
[1739452641893,0.07136,95989.0,95988.0,0.001]
[1739452642294,0.07136,95989.0,95987.0,0.2083304]
[1739452642495,0.3608,95990.0,95987.0,0.2083304]
[1739452642696,0.3608,95990.0,95988.0,0.2083275]
[1739452642895,0.3608,95990.0,95989.0,0.2083269]
[1739452643795,0.3608,95990.0,95985.0,0.001]
[1739452643983,0.07136,95989.0,95988.0,0.001]
[1739452644186,0.2796869,95989.0,95988.0,0.001]
[1739452644395,0.2083269,95989.0,95988.0,0.001]
[1739452644693,0.2083269,95989.0,95984.0,0.05134871]
[1739452644894,0.2083269,95989.0,95981.0,0.3608]
[1739452645094,0.3608,95990.0,95981.0,0.3608]
[1739452645395,0.07136,95989.0,95981.0,0.3608]
[1739452645591,0.2796869,95989.0,95988.0,0.001]
[1739452645798,0.2083269,95989.0,95988.0,0.001]
[1739452646585,0.2083269,95989.0,95988.0,0.002]
[1739452646991,0.3608,95990.0,95978.0,0.00015634]
[1739452647200,0.5691486,95979.0,95978.0,0.05300118]
[1739452647406,0.5691486,95979.0,95978.0,0.00015634]
[1739452648295,0.5691486,95979.0,95978.0,0.00115634]
[1739452648696,0.5691486,95979.0,95978.0,0.00215634]
[1739452649400,0.3608,95979.0,95978.0,0.00215634]
[1739452649900,0.12555037,95988.0,95983.0,0.2083384]
[1739452650101,0.3608,95990.0,95979.0,0.1055]
[1739452650297,0.3608,95990.0,95979.0,0.3121]
[1739452650494,0.3608,95990.0,95983.0,0.2083392]
[1739452651093,0.17574414,95990.0,95983.0,0.2103392]
[1739452651299,0.17574414,95990.0,95983.0,0.002]
[1739452651500,0.38407104,95990.0,95983.0,0.002]
[1739452651903,0.17574414,95990.0,95983.0,0.001]
[1739452652303,0.2083378,95984.0,95983.0,0.001]
[1739452652895,0.17574414,95990.0,95978.0,0.00015634]
[1739452652896,0.2083486,95979.0,95978.0,0.00015634]
[1739452654096,0.15462032,95985.0,95978.0,0.00115634]
[1739452654700,0.15462032,95985.0,95978.0,0.00215634]
[1739452654897,0.15462032,95985.0,95978.0,0.05507875]
[1739452655102,0.15462032,95985.0,95978.0,0.00215634]
[1739452655593,0.36295602,95985.0,95978.0,0.00215634]
[1739452655799,0.15462032,95985.0,95978.0,0.00215634]
[1739452656101,0.15462032,95985.0,95979.0,0.2083476]
[1739452656306,0.15462032,95985.0,95978.0,0.00215634]
[1739452656497,0.15462032,95985.0,95978.0,0.00115634]
[1739452656807,0.2083429,95982.0,95978.0,0.00115634]
[1739452657008,0.006,95985.0,95978.0,0.00215634]
[1739452657406,0.007,95985.0,95979.0,0.001]
[1739452657607,0.07168,95984.0,95979.0,0.001]
[1739452658103,0.07168,95984.0,95978.0,0.05224359]
[1739452658301,0.2143368,95985.0,95978.0,0.05324359]
[1739452658501,0.2083408,95983.0,95978.0,0.05324359]
[1739452659600,0.2083408,95983.0,95978.0,0.05224359]
[1739452659796,0.2083408,95983.0,95979.0,0.002]
[1739452660000,0.004,95984.0,95979.0,0.002]
[1739452660310,0.0716,95983.0,95979.0,0.001]
[1739452660506,0.0716,95983.0,95978.0,0.05324359]
[1739452660507,0.07164,95982.0,95978.0,0.05324359]
[1739452660811,0.15862032,95983.0,95979.0,0.111]
[1739452661003,0.15862032,95983.0,95982.0,0.2083421]
[1739452661203,0.15462032,95983.0,95982.0,0.2083421]
[1739452662912,0.15862032,95983.0,95982.0,0.2093421]
[1739452663403,0.15862032,95983.0,95982.0,0.2103421]
[1739452664912,0.05306884,95992.0,95991.0,0.2083226]
[1739452665114,0.21622325,95995.0,95994.0,0.2083161]
[1739452666515,0.21622325,95995.0,95994.0,0.2093161]
[1739452666814,0.22022325,95995.0,95994.0,0.2103161]
[1739452667016,0.22022325,95995.0,95994.0,0.2093161]
[1739452667212,0.22022325,95995.0,95994.0,0.2103161]
[1739452667513,0.27177022,95995.0,95994.0,0.2103161]
[1739452667710,0.27177022,95995.0,95994.0,0.26284805]
[1739452669722,0.05554697,95995.0,95994.0,0.26184805]
[1739452669913,0.05254697,95995.0,95994.0,0.26084805]
[1739452670418,0.08360026,95996.0,95995.0,0.2083139]
[1739452672220,0.13636154,95996.0,95995.0,0.2083139]
[1739452674719,0.05276128,95996.0,95995.0,0.2083139]
[1739452675022,0.1,96000.0,95991.0,0.3608]
[1739452675325,0.07184,95999.0,95998.0,0.2083074]
[1739452675524,0.1,96000.0,95999.0,0.2083052]
[1739452675822,0.15321484,96000.0,95999.0,0.62125689]
[1739452676022,0.11673964,96008.0,96001.0,0.2082989]
[1739452676224,0.11673964,96008.0,96003.0,0.2082963]
[1739452677824,0.11673964,96008.0,96001.0,0.001]
[1739452678818,0.11673964,96008.0,96005.0,0.2082921]
[1739452679021,0.16861512,96008.0,96005.0,0.2082921]
[1739452679418,0.16861512,96008.0,96002.0,0.3608]
[1739452679618,0.16861512,96008.0,96002.0,0.5690984]
[1739452679818,0.16861512,96008.0,96002.0,0.3608]
[1739452680123,0.16861512,96008.0,96005.0,0.001]
[1739452680324,0.05187548,96008.0,96005.0,0.001]
[1739452680521,0.2082785,96012.0,96005.0,0.001]
[1739452680718,0.12555037,96015.0,96003.0,0.2082952]
[1739452680917,0.12555037,96015.0,96002.0,0.3618]
[1739452681822,0.0506629,96007.0,96002.0,0.3618]
[1739452682223,0.0506629,96007.0,96002.0,0.3608]
[1739452682224,0.2082923,96005.0,96002.0,0.3608]
[1739452682423,0.2082966,96003.0,96002.0,0.3608]
[1739452682615,0.2589509,96007.0,96002.0,0.3608]
[1739452682821,0.2082907,96006.0,96002.0,0.3618]
[1739452683528,0.2082966,96003.0,96002.0,0.3618]
[1739452684235,0.2082966,96003.0,96002.0,0.3628]
[1739452685120,0.0506629,96007.0,96002.0,0.3628]
[1739452685320,0.0506629,96007.0,96006.0,0.2082901]
[1739452685517,0.05317979,96008.0,96006.0,0.2082901]
[1739452685724,0.12555037,96015.0,96002.0,0.3628]
[1739452685919,0.12555037,96015.0,96007.0,0.2082867]
[1739452686121,0.17732302,96015.0,96007.0,0.2082867]
[1739452686528,0.38559432,96015.0,96007.0,0.2082867]
[1739452686929,0.21229335,96015.0,96007.0,0.2082867]
[1739452687829,0.21229335,96015.0,96002.0,0.3618]
[1739452687830,0.00402205,96015.0,96014.0,0.2082727]
[1739452688132,0.36244,96017.0,96007.0,0.208287]
[1739452688329,0.3608,96017.0,96008.0,0.2082845]
[1739452688630,0.41298958,96017.0,96002.0,0.3618]
[1739452688835,0.12209504,96014.0,96004.0,0.2082937]
[1739452689224,0.12209504,96014.0,96007.0,0.001]
[1739452689630,0.12209504,96014.0,96008.0,0.001]
[1739452690334,0.12209504,96014.0,96007.0,0.2082878]
[1739452690935,0.12209504,96014.0,96007.0,0.2092878]
[1739452692026,0.14013444,96015.0,96007.0,0.2092878]
[1739452692426,0.41454959,96017.0,96008.0,0.001]
[1739452692731,0.41298958,96017.0,96008.0,0.001]
[1739452692931,0.41298958,96017.0,96012.0,0.2082753]
[1739452693132,0.0710851,96013.0,96012.0,0.2082753]
[1739452694833,0.0710851,96013.0,96012.0,0.2092753]
[1739452696632,0.07113018,96013.0,96012.0,0.2092753]
[1739452697325,0.07113018,96013.0,96012.0,0.2082753]
[1739452697532,0.07113018,96013.0,96012.0,0.001]
[1739452697734,0.27940508,96013.0,96012.0,0.001]
[1739452698135,0.07113018,96013.0,96012.0,0.001]
[1739452698536,0.27940508,96013.0,96012.0,0.001]
[1739452700436,0.27940508,96013.0,96012.0,0.002]
[1739452701249,0.07113018,96013.0,96012.0,0.002]
[1739452701846,0.07113018,96013.0,96012.0,0.210277]
[1739452702045,0.07113018,96013.0,96012.0,0.209277]
[1739452702240,0.07113018,96013.0,96012.0,0.210277]
[1739452702445,0.11547382,96015.0,96014.0,0.2082727]
[1739452702852,0.11547382,96015.0,96012.0,0.001]
[1739452703144,0.11547382,96015.0,96010.0,0.20828]
[1739452703349,0.11547382,96015.0,96009.0,0.2125]
[1739452703743,0.11547382,96015.0,96014.0,0.001]
[1739452704848,0.32374432,96015.0,96014.0,0.001]
[1739452705843,0.208273,96014.0,96008.0,0.3608]
[1739452706150,0.11547382,96015.0,96008.0,0.3608]
[1739452706151,0.2082751,96013.0,96008.0,0.3608]
[1739452706650,0.2082792,96012.0,96008.0,0.3608]
[1739452707144,0.2082792,96012.0,96008.0,0.3618]
[1739452708852,0.32936507,96015.0,96008.0,0.3618]
[1739452710452,0.2082729,96014.0,96008.0,0.3618]
[1739452710654,0.2082729,96014.0,96008.0,0.3608]
[1739452711251,0.2083031,96000.0,95999.0,0.00015626]
[1739452711458,0.2082966,96004.0,95999.0,0.00015626]
[1739452711645,0.2082947,96004.0,95999.0,0.00015626]
[1739452713050,0.2082947,96004.0,95999.0,0.00115626]
[1739452713249,0.12555037,96009.0,95999.0,0.00115626]
[1739452713250,0.208297,96003.0,95999.0,0.00115626]
[1739452713446,0.208297,96003.0,95999.0,0.00015626]
[1739452713651,0.208297,96003.0,95999.0,0.00115626]
[1739452715257,0.2082876,96008.0,95999.0,0.00115626]
[1739452716057,0.11921455,96002.0,95999.0,0.00115626]
[1739452716261,0.12555037,96009.0,95999.0,0.00115626]
[1739452716458,0.2082883,96007.0,95999.0,0.00115626]
[1739452716851,0.12555037,96009.0,96001.0,0.2083008]
[1739452717051,0.12555037,96009.0,96006.0,0.2082898]
[1739452717260,0.33381907,96016.0,96006.0,0.2082898]
[1739452717461,0.12555037,96016.0,96007.0,0.2082879]
[1739452717859,0.12555037,96016.0,96004.0,0.3608]
[1739452718953,0.12555037,96016.0,96004.0,0.5690936]
[1739452719262,0.33382087,96016.0,96004.0,0.5690936]
[1739452720747,0.33382087,96016.0,96004.0,0.3608]
[1739452720963,0.33382087,96016.0,96005.0,0.2082914]
[1739452721158,0.33382087,96016.0,96004.0,0.3608]
[1739452721463,0.33382087,96016.0,96006.0,0.2082899]
[1739452723161,0.18699138,96009.0,96006.0,0.2092899]
[1739452725360,0.19199138,96009.0,96006.0,0.2082899]
[1739452727268,0.18699138,96009.0,96006.0,0.2082899]
[1739452727468,0.19199138,96009.0,96008.0,0.2082857]
[1739452730765,0.12555037,96016.0,96008.0,0.2082857]
[1739452730964,0.006,96009.0,96008.0,0.2092857]
[1739452733366,0.006,96009.0,96008.0,0.001]
[1739452733568,0.07652,96009.0,96008.0,0.2092857]
[1739452733763,0.12555037,96016.0,96004.0,0.3608]
[1739452734066,0.006,96009.0,96004.0,0.3608]
[1739452734267,0.07052,96008.0,96004.0,0.3608]
[1739452734569,0.07052,96008.0,96007.0,0.2082879]
[1739452734769,0.07052,96008.0,96004.0,0.3608]
[1739452734770,0.006,96009.0,96008.0,0.2082857]
[1739452735161,0.1934885,96016.0,96015.0,0.2082705]
[1739452735365,0.06793813,96016.0,96015.0,0.5690705]
[1739452736566,0.06793813,96016.0,96015.0,0.5700705]
[1739452736776,0.06293813,96016.0,96015.0,0.5700705]
[1739452737569,0.06893813,96016.0,96015.0,0.5710705]
[1739452737977,0.006,96016.0,96015.0,0.5710705]
[1739452739575,0.23929918,96017.0,96015.0,0.3628]
[1739452739576,0.18705227,96017.0,96015.0,0.3628]
[1739452739876,0.18705227,96017.0,96016.0,0.2082684]
[1739452740070,0.18705227,96017.0,96016.0,0.5337684]
[1739452741172,0.19305227,96017.0,96016.0,0.58647261]
[1739452742382,0.19305227,96017.0,96016.0,0.5357684]
[1739452742675,0.05718875,96017.0,96016.0,0.5357684]
[1739452743073,0.26545495,96017.0,96016.0,0.3275]
[1739452743271,0.05718875,96017.0,96016.0,0.3275]
[1739452743976,0.05718875,96017.0,96016.0,0.002]
[1739452746183,0.10784407,96017.0,96016.0,0.2102684]
[1739452748679,0.10784407,96017.0,96016.0,0.002]
[1739452749874,0.31611027,96017.0,96016.0,0.002]
[1739452752486,0.50299505,96017.0,96016.0,0.002]
[1739452753685,0.2082836,96009.0,96006.0,0.3608]
[1739452754079,0.208273,96014.0,96006.0,0.3608]
[1739452755584,0.208273,96014.0,96004.0,0.3608]
[1739452756173,0.12484246,96008.0,96004.0,0.3608]
[1739452756877,0.12484246,96008.0,96006.0,0.001]
[1739452757078,0.33313026,96008.0,96006.0,0.001]
[1739452757278,0.33413026,96008.0,96006.0,0.001]
[1739452757584,0.33613026,96008.0,96004.0,0.3608]
[1739452757981,0.33513026,96008.0,96004.0,0.3608]
[1739452758284,0.33613026,96008.0,96006.0,0.001]
[1739452758984,0.12784246,96008.0,96006.0,0.001]
[1739452759685,0.12484246,96007.0,96006.0,0.001]
[1739452759886,0.12484246,96007.0,96004.0,0.3608]
[1739452760386,0.12484246,96007.0,96006.0,0.2082896]
[1739452760584,0.12484246,96007.0,96006.0,0.2092896]
[1739452761086,0.12584246,96007.0,96006.0,0.2082896]
[1739452761285,0.12684246,96007.0,96006.0,0.2082896]
[1739452761680,0.12684246,96007.0,96006.0,0.2092896]
[1739452762489,0.05265532,96007.0,96006.0,0.2092896]
[1739452762982,0.05265532,96007.0,96006.0,0.5700896]
[1739452763185,0.18683332,96012.0,96011.0,0.2082792]
[1739452763486,0.21818339,96028.0,96025.0,0.2082475]
[1739452763685,0.26205826,96028.0,96026.0,0.2199]
[1739452765383,0.26205826,96028.0,96026.0,0.2209]
[1739452765887,0.04387487,96028.0,96026.0,0.2209]
[1739452766085,0.12555037,96036.0,96026.0,0.2209]
[1739452766985,0.12555037,96036.0,96026.0,0.2219]
[1739452767187,0.12555037,96036.0,96026.0,0.2209]
[1739452767396,0.17033032,96036.0,96034.0,0.2082277]
[1739452767687,0.04477995,96036.0,96034.0,0.2082277]
[1739452767985,0.21818339,96038.0,96034.0,0.2082277]
[1739452768681,0.21818339,96038.0,96034.0,0.2092277]
[1739452769682,0.21818339,96038.0,96034.0,0.2102277]
[1739452770087,0.21818339,96038.0,96034.0,0.2092277]
[1739452770287,0.26277075,96038.0,96034.0,0.2102277]
[1739452771187,0.04458736,96038.0,96034.0,0.2102277]
[1739452771390,0.12555037,96044.0,96034.0,0.2102277]
[1739452772185,0.16901287,96044.0,96034.0,0.2102277]
[1739452773085,0.52981287,96044.0,96034.0,0.2102277]
[1739452773287,0.73802057,96044.0,96034.0,0.002]
[1739452773989,0.73802057,96044.0,96030.0,0.2082371]
[1739452774788,0.52981287,96044.0,96029.0,0.3608]
[1739452774984,0.52981287,96044.0,96033.0,0.2082314]
[1739452775383,0.06260394,96043.0,96033.0,0.2082314]
[1739452776294,0.06260394,96043.0,96034.0,0.2082292]
[1739452778686,0.42340394,96043.0,96034.0,0.2082292]
[1739452779095,0.3608,96043.0,96034.0,0.2082292]
[1739452782802,0.3608,96043.0,96036.0,0.2082247]
[1739452783699,0.0434625,96044.0,96036.0,0.3608]
[1739452783892,0.12555037,96050.0,96036.0,0.3608]
[1739452784086,0.21818339,96055.0,96044.0,0.3608]
[1739452784291,0.21818339,96055.0,96045.0,0.2277]
[1739452784595,0.21818339,96055.0,96045.0,0.3405]
[1739452784801,0.09908891,96055.0,96054.0,0.208186]
[1739452785294,0.09908891,96055.0,96053.0,0.3608]
[1739452785495,0.30727291,96055.0,96045.0,0.1128]
[1739452785894,0.09908891,96055.0,96045.0,0.1128]
[1739452786093,0.09908891,96055.0,96045.0,0.3210038]
[1739452786594,0.04296963,96055.0,96053.0,0.001]
[1739452786891,0.18662796,96057.0,96053.0,0.001]
[1739452787701,0.23061415,96057.0,96045.0,0.3220038]
[1739452787903,0.12555037,96055.0,96053.0,0.001]
[1739452788093,0.23061415,96057.0,96053.0,0.001]
[1739452789499,0.43879555,96057.0,96053.0,0.002]
[1739452790296,0.23061415,96057.0,96053.0,0.002]
[1739452790601,0.208186,96054.0,96053.0,0.002]
[1739452791110,0.545886,96054.0,96053.0,0.002]
[1739452795005,0.60795078,96054.0,96053.0,0.002]
[1739452795706,0.06206478,96054.0,96053.0,0.002]
[1739452796501,0.06206478,96054.0,96053.0,0.2101881]
[1739452797195,0.06206478,96054.0,96053.0,0.5375881]
[1739452798510,0.23072511,96057.0,96055.0,0.2081822]
[1739452798699,0.18673892,96057.0,96055.0,0.2081822]
[1739452799208,0.3608,96066.0,96057.0,0.2081792]
[1739452799512,0.3608,96066.0,96058.0,0.2081762]
[1739452799513,0.12555037,96063.0,96058.0,0.2081762]
[1739452799702,0.16985277,96063.0,96061.0,0.2081705]
[1739452800003,0.0443024,96063.0,96061.0,0.2081705]
[1739452800303,0.3608,96066.0,96064.0,0.2081627]
[1739452800502,0.25159582,96078.0,96076.0,0.2081378]
[1739452800695,0.25003581,96078.0,96077.0,0.3608]
[1739452801100,0.56421008,96078.0,96077.0,0.3327]
[1739452801498,0.56421008,96078.0,96068.0,0.00015618]
[1739452801804,0.2081426,96074.0,96068.0,0.00015618]
[1739452802012,0.69140045,96078.0,96068.0,0.00015618]
[1739452802309,0.5689535,96069.0,96068.0,0.00015618]
[1739452803095,0.2082091,96044.0,96042.0,0.2237]
[1739452803302,0.0520428,96061.0,96026.0,0.3608]
[1739452803303,0.3608,96043.0,96026.0,0.3608]
[1739452803509,0.12555037,96036.0,96026.0,0.3608]
[1739452803705,0.12555037,96036.0,96035.0,0.3608]
[1739452803903,0.2082147,96041.0,96029.0,0.18727119]
[1739452804098,0.12555037,96039.0,96029.0,0.18727119]
[1739452804905,0.16922015,96039.0,96033.0,0.2082304]
[1739452805214,0.3608,96043.0,96035.0,0.3608]
[1739452805418,0.071,96042.0,96041.0,0.2082142]
[1739452805616,0.04447937,96044.0,96043.0,0.2082098]
[1739452805812,0.00015507,96045.0,96043.0,0.2082098]
[1739452806011,0.00015507,96045.0,96044.0,0.3608]
[1739452806306,0.00015507,96045.0,96043.0,0.1103]
[1739452806514,0.00015507,96045.0,96036.0,0.3608]
[1739452806515,0.04386861,96045.0,96036.0,0.3608]
[1739452806712,0.5690107,96043.0,96029.0,0.18727119]
[1739452806909,0.12555037,96039.0,96034.0,0.3608]
[1739452808508,0.12555037,96044.0,96034.0,0.3608]
[1739452809004,0.2082159,96041.0,96034.0,0.3608]
[1739452809208,0.12555037,96044.0,96034.0,0.3608]
[1739452810218,0.33375977,96044.0,96034.0,0.3608]
[1739452810517,0.2792907,96043.0,96034.0,0.3608]
[1739452810814,0.2082107,96043.0,96034.0,0.3608]
[1739452811823,0.2092107,96043.0,96034.0,0.3608]
[1739452812707,0.2082185,96039.0,96034.0,0.3608]
[1739452813917,0.2092185,96039.0,96034.0,0.3608]
[1739452814418,0.001,96039.0,96034.0,0.3608]
[1739452814605,0.07088,96038.0,96034.0,0.3608]
[1739452816714,0.2082272,96035.0,96034.0,0.3608]
[1739452817015,0.2082445,96027.0,96026.0,0.00015618]
[1739452817214,0.3608,96027.0,96024.0,0.00156199]
[1739452817604,0.2082488,96025.0,96024.0,0.00156199]
[1739452818209,0.2082684,96016.0,96015.0,0.00015618]
[1739452818507,0.5690684,96016.0,96015.0,0.00015618]
[1739452820619,0.5700684,96016.0,96015.0,0.00015618]
[1739452820818,0.2082966,96003.0,96002.0,0.18727119]
[1739452821412,0.3608,96005.0,96002.0,0.18727119]
[1739452822218,0.003,96003.0,96002.0,0.18727119]
[1739452822616,0.12555037,96012.0,96002.0,0.18727119]
[1739452822617,0.33382787,96012.0,96002.0,0.18727119]
[1739452822817,0.12555037,96030.0,96014.0,0.2082712]
[1739452823016,0.12555037,96030.0,96012.0,0.3411]
[1739452823223,0.12555037,96024.0,96012.0,0.3411]
[1739452823717,0.18662995,96016.0,96012.0,0.3411]
[1739452824023,0.18662995,96016.0,96012.0,0.1174]
[1739452824223,0.001,96012.0,96005.0,0.3608]
[1739452824422,0.07104,96011.0,96005.0,0.3608]
[1739452825724,0.07404,96011.0,96005.0,0.3608]
[1739452826028,0.07104,96010.0,96009.0,0.2082822]
[1739452826226,0.003,96011.0,96009.0,0.2082822]
[1739452827224,0.002,96010.0,96009.0,0.2082822]
[1739452827424,0.18650077,96016.0,96015.0,0.2082705]
[1739452827928,0.31205114,96030.0,96017.0,0.2082654]
[1739452828127,0.31205114,96030.0,96018.0,0.2282]
[1739452828320,0.03751463,96026.0,96018.0,0.2282]
[1739452828719,0.24576273,96026.0,96018.0,0.2282]
[1739452828919,0.2082535,96023.0,96018.0,0.2282]
[1739452829422,0.24576193,96026.0,96018.0,0.2282]
[1739452829624,0.2082557,96022.0,96015.0,0.1154]
[1739452830334,0.2082557,96022.0,96014.0,0.3608]
[1739452830830,0.2112557,96022.0,96014.0,0.3608]
[1739452831024,0.2112557,96022.0,96017.0,0.3608]
[1739452831216,0.2112557,96022.0,96006.0,0.1159]
[1739452831424,0.2082557,96022.0,96006.0,0.1159]
[1739452831624,0.2112557,96022.0,96006.0,0.1159]
[1739452832027,0.12555037,96016.0,96006.0,0.1159]
[1739452832528,0.3608,96015.0,96006.0,0.1159]
[1739452832722,0.2082795,96011.0,96006.0,0.1159]
[1739452833630,0.3608,96007.0,96006.0,0.1159]
[1739452834226,0.208291,96006.0,96004.0,0.1149]
[1739452834927,0.3618,96007.0,95997.0,0.3608]
[1739452835132,0.2082998,96002.0,95997.0,0.3608]
[1739452835627,0.2083032,96000.0,95997.0,0.3608]
[1739452835935,0.002,96006.0,95997.0,0.3608]
[1739452836133,0.07104,96005.0,95997.0,0.3608]